fUSD/lending_fUSD_20240217
["ID","MTS","AMOUNT","RATE_DAILY","PERIOD"]
[314276248,1708139482569,-158.23203846,0.00053483,60]
[314276249,1708139482578,-386.47327606,0.000535,120]
[314276250,1708139482587,-500.0,0.00053549,120]
[314276251,1708139482596,-578.99385,0.0005357,2]
[314276252,1708139482604,-1709.99,0.000536,21]
[314276253,1708139482613,-500.0,0.00053632,120]
[314276254,1708139482622,-739.89,0.00053698,60]
[314276255,1708139482631,-500.0,0.00053698,60]
[314276256,1708139482640,-615.82,0.00053698,60]
[314276257,1708139482649,-521.38,0.00053698,2]
[314276258,1708139482658,-526.92,0.00053698,60]
[314276259,1708139482666,-500.0,0.00053698,60]
[314276260,1708139482675,-1162.21,0.00053698,60]
[314276261,1708139482685,-500.0,0.00053698,2]
[314276262,1708139482694,-1393.94,0.00053698,60]
[314276263,1708139482703,-500.0,0.00053698,60]
[314276264,1708139482711,-500.0,0.00053698,60]
[314276265,1708139482720,-1028.76,0.00053698,2]
[314276266,1708139482729,-500.0,0.00053698,60]
[314276267,1708139482738,-657.81,0.00053698,60]
[314276268,1708139482747,-500.0,0.00053698,60]
[314276269,1708139482757,-523.96,0.00053698,60]
[314276270,1708139482766,-500.0,0.00053698,60]
[314276271,1708139482775,-500.0,0.00053698,60]
[314276272,1708139482785,-854.01,0.00053698,60]
[314276273,1708139482794,-1495.02,0.00053698,60]
[314276274,1708139482804,-500.0,0.00053698,60]
[314276275,1708139482813,-1165.59,0.00053698,60]
[314276276,1708139482823,-500.0,0.00053698,60]
[314276277,1708139482832,-636.17,0.00053698,60]
[314276278,1708139482841,-893.76,0.00053698,60]
[314276279,1708139482850,-622.67,0.00053698,60]
[314276280,1708139482859,-3136.01,0.00053698,60]
[314276281,1708139482868,-5024.34,0.00053698,60]
[314276282,1708139482877,-500.0,0.00053698,60]
[314276283,1708139482886,-502.24,0.00053698,60]
[314276284,1708139482896,-569.8,0.00053698,60]
[314276285,1708139482905,-500.0,0.00053698,60]
[314276286,1708139482914,-556.89,0.00053698,60]
[314276287,1708139482924,-873.0,0.00053698,60]
[314276288,1708139482937,-421.69861618,0.00053698,60]
[314276289,1708139482946,-1593.36,0.00053698,60]
[314276290,1708139482956,-3220.88,0.00053698,60]
[314276291,1708139482965,-519.51,0.00053698,60]
[314276292,1708139482975,-500.0,0.00053698,60]
[314276293,1708139482984,-937.4,0.00053698,60]
[314276294,1708139482994,-577.85,0.00053698,60]
[314276295,1708139483003,-1846.34,0.00053698,60]
[314276296,1708139483012,-500.0,0.00053698,60]
[314276297,1708139483022,-1210.8,0.00053698,14]
[314276298,1708139483032,-1111.25,0.00053698,60]
[314276299,1708139483041,-783.66,0.00053698,60]
[314276300,1708139483051,-567.1,0.00053698,60]
[314276301,1708139483060,-418.30970664,0.00053698,60]
[314276302,1708139483069,-523.09,0.00053698,60]
[314276303,1708139483079,-1634.88,0.00053698,60]
[314276304,1708139483088,-500.0,0.00053698,60]
[314276305,1708139483097,-500.0,0.00053698,60]
[314276306,1708139483107,-500.0,0.00053698,60]
[314276307,1708139483116,-500.0,0.00053698,60]
[314276308,1708139483126,-2129.66,0.00053698,60]
[314276309,1708139483136,-455.76665914,0.00053698,60]
[314276310,1708139483145,-1935.87,0.00053698,60]
[314276311,1708139483154,-554.4,0.00053698,60]
[314276312,1708139483163,-500.0,0.00053698,60]
[314276313,1708139483172,-972.28,0.00053698,60]
[314276314,1708139483181,-577.36,0.00053698,60]
[314276315,1708139483190,-1034.46,0.00053698,60]
[314276316,1708139483198,-500.0,0.00053698,60]
[314276317,1708139483208,-616.39755566,0.00053698,60]
[314276318,1708139483217,-500.0,0.00053698,60]
[314276319,1708139483226,-879.44,0.00053698,60]
[314276320,1708139483234,-692.92,0.00053698,60]
[314276321,1708139483244,-718.43,0.00053698,60]
[314276322,1708139483252,-500.0,0.00053698,60]
[314276323,1708139483261,-5123.64,0.00053698,60]
[314276324,1708139483270,-12479.19,0.00053698,60]
[314276325,1708139483279,-1145.97,0.00053698,60]
[314276326,1708139483288,-500.0,0.00053698,60]
[314276327,1708139483297,-738.56,0.00053698,60]
[314276328,1708139483307,-152.74,0.00053699,2]
[314276329,1708139483315,-796.92487749,0.000537,8]
[314276330,1708139483324,-500.0,0.00053715,120]
[314276331,1708139483333,-1098.96,0.00053738,2]
[314276332,1708139483341,-500.0,0.00053798,120]
[314276333,1708139483350,-1668.38,0.000538,20]
[314276334,1708139483359,-20305.42904711,0.00053838,30]
[314276335,1708139483368,-5178.0,0.0005388,30]
[314276336,1708139483378,-500.0,0.00053881,120]
[314276337,1708139483387,-181.0,0.00053899,120]
[314276338,1708139483396,-50000.0,0.000539,120]
[314276339,1708139483405,-500.0,0.00053964,120]
[314276340,1708139483414,-160.47151562,0.00053966,120]
[314276341,1708139483423,-802.67576672,0.00053966,120]
[314276342,1708139483432,-739.89,0.00053972,60]
[314276343,1708139483442,-500.0,0.00053972,60]
[314276344,1708139483450,-615.82,0.00053972,60]
[314276345,1708139483459,-521.38,0.00053972,2]
[314276346,1708139483467,-526.92,0.00053972,60]
[314276347,1708139483476,-500.0,0.00053972,60]
[314276348,1708139483485,-1162.21,0.00053972,60]
[314276349,1708139483494,-500.0,0.00053972,2]
[314276350,1708139483503,-1393.94,0.00053972,60]
[314276351,1708139483512,-500.0,0.00053972,60]
[314276352,1708139483521,-500.0,0.00053972,60]
[314276353,1708139483530,-1028.76,0.00053972,2]
[314276354,1708139483539,-500.0,0.00053972,60]
[314276355,1708139483548,-657.81,0.00053972,60]
[314276356,1708139483557,-500.0,0.00053972,60]
[314276357,1708139483567,-523.96,0.00053972,60]
[314276358,1708139483576,-500.0,0.00053972,60]
[314276359,1708139483586,-500.0,0.00053972,60]
[314276360,1708139483595,-854.01,0.00053972,60]
[314276361,1708139483604,-1495.02,0.00053972,60]
[314276362,1708139483613,-500.0,0.00053972,60]
[314276363,1708139483622,-1165.59,0.00053972,60]
[314276364,1708139483632,-500.0,0.00053972,60]
[314276365,1708139483641,-636.17,0.00053972,60]
[314276366,1708139483650,-893.76,0.00053972,60]
[314276367,1708139483659,-622.67,0.00053972,60]
[314276368,1708139483668,-3136.01,0.00053972,60]
[314276369,1708139483678,-5024.34,0.00053972,60]
[314276370,1708139483687,-500.0,0.00053972,60]
[314276371,1708139483696,-502.24,0.00053972,60]
[314276372,1708139483705,-569.8,0.00053972,60]
[314276373,1708139483714,-500.0,0.00053972,60]
[314276374,1708139483724,-556.89,0.00053972,60]
[314276375,1708139483733,-873.0,0.00053972,60]
[314276376,1708139483743,-1593.36,0.00053972,60]
[314276377,1708139483752,-3220.88,0.00053972,60]
[314276378,1708139483761,-519.51,0.00053972,60]
[314276379,1708139483771,-500.0,0.00053972,60]
[314276380,1708139483780,-937.4,0.00053972,60]
[314276381,1708139483789,-577.85,0.00053972,60]
[314276382,1708139483798,-1846.34,0.00053972,60]
[314276383,1708139483807,-500.0,0.00053972,60]
[314276384,1708139483816,-1210.8,0.00053972,14]
[314276385,1708139483825,-1111.25,0.00053972,60]
[314276386,1708139483834,-783.66,0.00053972,60]
[314276387,1708139483844,-567.1,0.00053972,60]
[314276388,1708139483852,-523.09,0.00053972,60]
[314276389,1708139483862,-500.0,0.00053972,60]
[314276390,1708139483871,-500.0,0.00053972,60]
[314276391,1708139483880,-500.0,0.00053972,60]
[314276392,1708139483889,-373.81524868,0.00053972,60]
[314276393,1708139483898,-2129.66,0.00053972,60]
[314276394,1708139483908,-1935.87,0.00053972,60]
[314276395,1708139483917,-554.4,0.00053972,60]
[314276396,1708139483926,-500.0,0.00053972,60]
[314276397,1708139483939,-972.28,0.00053972,60]
[314276398,1708139483948,-577.36,0.00053972,60]
[314276399,1708139483957,-1034.46,0.00053972,60]
[314276400,1708139483967,-500.0,0.00053972,60]
[314276401,1708139483978,-500.0,0.00053972,60]
[314276402,1708139483987,-879.44,0.00053972,60]
[314276403,1708139483997,-692.92,0.00053972,60]
[314276404,1708139484006,-718.43,0.00053972,60]
[314276405,1708139484016,-500.0,0.00053972,60]
[314276406,1708139484025,-5123.64,0.00053972,60]
[314276407,1708139484034,-12479.19,0.00053972,60]
[314276408,1708139484044,-1145.97,0.00053972,60]
[314276409,1708139484053,-738.56,0.00053972,60]
[314276410,1708139484062,-500.0,0.00053972,60]
[314276411,1708139484071,-160.47151562,0.00053975,120]
[314276412,1708139484080,-160.47151562,0.00053977,120]
[314276413,1708139484089,-1552.19206393,0.0005398,120]
[314276414,1708139484098,-200.0,0.00053987,88]
[314276415,1708139484107,-200.0,0.00053987,86]
[314276416,1708139484116,-200.0,0.00053987,84]
[314276417,1708139484125,-160.47151562,0.00053989,120]
[314276418,1708139484134,-802.67576672,0.00053991,120]
[314276419,1708139484143,-25000.0,0.00054,7]
[314276420,1708139484253,-2000.0,0.00054,120]
[314276421,1708139484271,-313.95855664,0.00054,54]
[314276422,1708139484281,-199.0,0.00054,30]
[314276423,1708139484290,-387.94568805,0.00054,30]
[314276424,1708139484299,-4000.0,0.00054,120]
[314276425,1708139484308,-800.0,0.00054,30]
[314276426,1708139484318,-500.0,0.00054,20]
[314276427,1708139484327,-207.0,0.00054,11]
[314276428,1708139484337,-1000.0,0.00054,2]
[314276429,1708139484346,-518.91831547,0.00054,60]
[314276430,1708139484355,-557.53589337,0.00054,60]
[314276431,1708139484364,-510.15287289,0.00054,60]
[314276432,1708139484374,-802.67576672,0.00054005,120]
[314276433,1708139484383,-160.47151562,0.00054031,120]
[314276434,1708139484392,-1255.0,0.00054037,120]
[314276435,1708139484401,-1231.0,0.00054037,120]
[314276436,1708139484410,-1949.0,0.00054037,120]
[314276437,1708139484419,-2871.0,0.00054037,120]
[314276438,1708139484428,-802.67576672,0.00054045,120]
[314276439,1708139484437,-500.0,0.00054047,120]
[314276440,1708139484446,-802.67576672,0.00054049,120]
[314276441,1708139484455,-802.67576672,0.00054051,120]
[314276442,1708139484465,-160.47151562,0.00054059,120]
[314276443,1708139484474,-214.72550425,0.00054067,14]
[314276444,1708139484483,-254.45312673,0.00054067,14]
[314276445,1708139484493,-72088.08920102,0.000541,4]
[314276446,1708139484502,-500.0,0.0005413,120]
[314276447,1708139484511,-151.021788,0.00054148,54]
[314276448,1708139484520,-206.99,0.000542,120]
[314276449,1708139484530,-500.0,0.00054213,120]
[314276450,1708139484539,-739.89,0.00054246,60]
[314276451,1708139484548,-500.0,0.00054246,60]
[314276452,1708139484558,-615.82,0.00054246,60]
[314276453,1708139484567,-521.38,0.00054246,2]
[314276454,1708139484576,-526.92,0.00054246,60]
[314276455,1708139484585,-500.0,0.00054246,60]
[314276456,1708139484594,-1162.21,0.00054246,60]
[314276457,1708139484603,-500.0,0.00054246,2]
[314276458,1708139484612,-1393.94,0.00054246,60]
[314276459,1708139484621,-500.0,0.00054246,60]
[314276460,1708139484632,-500.0,0.00054246,60]
[314276461,1708139484641,-1028.76,0.00054246,2]
[314276462,1708139484650,-465.01740954,0.00054246,60]
[314276463,1708139484659,-657.81,0.00054246,60]
[314276464,1708139484668,-500.0,0.00054246,60]
[314276465,1708139484677,-523.96,0.00054246,60]
[314276466,1708139484687,-500.0,0.00054246,60]
[314276467,1708139484697,-500.0,0.00054246,60]
[314276468,1708139484706,-854.01,0.00054246,60]
[314276469,1708139484715,-1495.02,0.00054246,60]
[314276470,1708139484725,-613.41894651,0.00054246,60]
[314276471,1708139484734,-1165.59,0.00054246,60]
[314276472,1708139484744,-636.17,0.00054246,60]
[314276473,1708139484753,-893.76,0.00054246,60]
[314276474,1708139484762,-622.67,0.00054246,60]
[314276475,1708139484772,-3136.01,0.00054246,60]
[314276476,1708139484782,-5024.34,0.00054246,60]
[314276477,1708139484792,-500.0,0.00054246,60]
[314276478,1708139484801,-502.24,0.00054246,60]
[314276479,1708139484810,-569.8,0.00054246,60]
[314276480,1708139484820,-500.0,0.00054246,60]
[314276481,1708139484829,-556.89,0.00054246,60]
[314276482,1708139484838,-873.0,0.00054246,60]
[314276483,1708139484847,-1593.36,0.00054246,60]
[314276484,1708139484857,-3220.88,0.00054246,60]
[314276485,1708139484867,-519.51,0.00054246,60]
[314276486,1708139484876,-500.0,0.00054246,60]
[314276487,1708139484885,-937.4,0.00054246,60]
[314276488,1708139484895,-577.85,0.00054246,60]
[314276489,1708139484905,-1846.34,0.00054246,60]
[314276490,1708139484914,-500.0,0.00054246,60]
[314276491,1708139484923,-1210.8,0.00054246,14]
[314276492,1708139484932,-1111.25,0.00054246,60]
[314276493,1708139484945,-783.66,0.00054246,60]
[314276494,1708139484954,-567.1,0.00054246,60]
[314276495,1708139484963,-523.09,0.00054246,60]
[314276496,1708139484972,-253.0417481,0.00054246,60]
[314276497,1708139484981,-500.0,0.00054246,60]
[314276498,1708139484990,-500.0,0.00054246,60]
[314276499,1708139485000,-2129.66,0.00054246,60]
[314276500,1708139485009,-1935.87,0.00054246,60]
[314276501,1708139485020,-554.4,0.00054246,60]
[314276502,1708139485030,-500.0,0.00054246,60]
[314276503,1708139485039,-972.28,0.00054246,60]
[314276504,1708139485048,-577.36,0.00054246,60]
[314276505,1708139485057,-1034.46,0.00054246,60]
[314276506,1708139485067,-500.0,0.00054246,60]
[314276507,1708139485076,-500.0,0.00054246,60]
[314276508,1708139485085,-879.44,0.00054246,60]
[314276509,1708139485093,-692.92,0.00054246,60]
[314276510,1708139485102,-718.43,0.00054246,60]
[314276511,1708139485112,-482.13712996,0.00054246,60]
[314276512,1708139485122,-5123.64,0.00054246,60]
[314276513,1708139485131,-12479.19,0.00054246,60]
[314276514,1708139485140,-1145.97,0.00054246,60]
[314276515,1708139485150,-738.56,0.00054246,60]
[314276516,1708139485159,-500.0,0.00054246,60]
[314276517,1708139485168,-500.0,0.00054296,120]
[314276518,1708139485177,-222.68,0.000543,14]
[314276519,1708139485186,-228.27,0.000543,33]
[314276520,1708139485195,-153.89569785,0.00054313,60]
[314276521,1708139485204,-5331.02501207,0.00054348,31]
[314276522,1708139485213,-500.0,0.00054379,120]
[314276523,1708139485222,-50000.0,0.000544,120]
[314276524,1708139485231,-18211.22257101,0.000544,2]
[314276525,1708139485239,-181.0,0.00054447,120]
[314276526,1708139485249,-151.021788,0.00054448,54]
[314276527,1708139485258,-500.0,0.00054462,120]
[314276528,1708139485266,-2943.48867172,0.0005449,120]
[314276529,1708139485276,-3000.0,0.000545,50]
[314276530,1708139485285,-5000.0,0.000545,64]
[314276531,1708139485294,-3000.0,0.000545,50]
[314276532,1708139485303,-200.0,0.000545,33]
[314276533,1708139485312,-2854.457501,0.000545,98]
[314276534,1708139485321,-1736.688955,0.000545,32]
[314276535,1708139485330,-150.0,0.000545,39]
[314276536,1708139485339,-150.0,0.000545,39]
[314276537,1708139485348,-160.0,0.000545,120]
[314276538,1708139485357,-500.0,0.0005452,120]
[314276539,1708139485366,-208.39091494,0.0005452,120]
[314276540,1708139485375,-739.89,0.0005452,120]
[314276541,1708139485384,-500.0,0.0005452,120]
[314276542,1708139485393,-615.82,0.0005452,120]
[314276543,1708139485401,-521.38,0.0005452,2]
[314276544,1708139485410,-526.92,0.0005452,120]
[314276545,1708139485419,-500.0,0.0005452,120]
[314276546,1708139485428,-1162.21,0.0005452,120]
[314276547,1708139485437,-500.0,0.0005452,2]
[314276548,1708139485447,-1393.94,0.0005452,120]
[314276549,1708139485455,-544.66118887,0.0005452,120]
[314276550,1708139485464,-214.75033922,0.0005452,120]
[314276551,1708139485473,-1028.76,0.0005452,2]
[314276552,1708139485482,-657.81,0.0005452,120]
[314276553,1708139485491,-500.0,0.0005452,120]
[314276554,1708139485500,-523.96,0.0005452,120]
[314276555,1708139485509,-402.51106368,0.0005452,120]
[314276556,1708139485517,-854.01,0.0005452,120]
[314276557,1708139485527,-1495.02,0.0005452,120]
[314276558,1708139485536,-1165.59,0.0005452,120]
[314276559,1708139485545,-636.17,0.0005452,120]
[314276560,1708139485554,-893.76,0.0005452,120]
[314276561,1708139485563,-622.67,0.0005452,120]
[314276562,1708139485572,-3136.01,0.0005452,120]
[314276563,1708139485582,-5024.34,0.0005452,120]
[314276564,1708139485591,-500.0,0.0005452,120]
[314276565,1708139485599,-502.24,0.0005452,120]
[314276566,1708139485608,-569.8,0.0005452,120]
[314276567,1708139485617,-500.0,0.0005452,120]
[314276568,1708139485626,-556.89,0.0005452,120]
[314276569,1708139485635,-873.0,0.0005452,120]
[314276570,1708139485644,-1593.36,0.0005452,120]
[314276571,1708139485654,-3220.88,0.0005452,120]
[314276572,1708139485663,-519.51,0.0005452,120]
[314276573,1708139485672,-500.0,0.0005452,120]
[314276574,1708139485681,-937.4,0.0005452,120]
[314276575,1708139485690,-577.85,0.0005452,120]
[314276576,1708139485700,-1846.34,0.0005452,120]
[314276577,1708139485708,-500.0,0.0005452,120]
[314276578,1708139485717,-1210.8,0.0005452,14]
[314276579,1708139485726,-1111.25,0.0005452,120]
[314276580,1708139485736,-783.66,0.0005452,120]
[314276581,1708139485745,-567.1,0.0005452,120]
[314276582,1708139485754,-523.09,0.0005452,120]
[314276583,1708139485763,-500.0,0.0005452,120]
[314276584,1708139485771,-500.0,0.0005452,120]
[314276585,1708139485781,-2129.66,0.0005452,120]
[314276586,1708139485790,-1935.87,0.0005452,120]
[314276587,1708139485799,-554.4,0.0005452,120]
[314276588,1708139485809,-279.31154892,0.0005452,120]
[314276589,1708139485818,-972.28,0.0005452,120]
[314276590,1708139485826,-577.36,0.0005452,120]
[314276591,1708139485835,-1034.46,0.0005452,120]
[314276592,1708139485844,-500.0,0.0005452,120]
[314276593,1708139485854,-289.25224024,0.0005452,120]
[314276594,1708139485863,-879.44,0.0005452,120]
[314276595,1708139485872,-692.92,0.0005452,120]
[314276596,1708139485881,-718.43,0.0005452,120]
[314276597,1708139485891,-5123.64,0.0005452,120]
[314276598,1708139485900,-12479.19,0.0005452,120]
[314276599,1708139485909,-1145.97,0.0005452,120]
[314276600,1708139485919,-738.56,0.0005452,120]
[314276601,1708139485928,-500.0,0.0005452,120]
[314276602,1708139485941,-500.0,0.00054545,120]
[314276603,1708139485950,-155.0,0.0005455,120]
[314276604,1708139485959,-800.0,0.00054559,30]
[314276605,1708139485969,-45093.12921297,0.0005456,120]
[314276606,1708139485978,-500.0,0.00054628,120]
[314276607,1708139485988,-10000.0,0.00054638,31]
[314276608,1708139485997,-10000.0,0.00054638,31]
[314276609,1708139486006,-10000.0,0.00054638,31]
[314276610,1708139486016,-10000.0,0.00054638,31]
[314276611,1708139486025,-10000.0,0.00054638,31]
[314276612,1708139486035,-10000.0,0.00054638,31]
[314276613,1708139486044,-10000.0,0.00054638,31]
[314276614,1708139486053,-10000.0,0.00054638,31]
[314276615,1708139486062,-10000.0,0.00054638,31]
[314276616,1708139486071,-10000.0,0.00054638,31]
[314276617,1708139486080,-10000.0,0.00054638,31]
[314276618,1708139486089,-10000.0,0.00054638,31]
[314276619,1708139486098,-1618.58,0.00054645,120]
[314276620,1708139486107,-152.84887592,0.00054665,73]
[314276621,1708139486116,-269.68778899,0.00054698,45]
[314276622,1708139486124,-642.45642401,0.00054698,45]
[314276623,1708139486134,-327.41087426,0.00054698,45]
[314276624,1708139486143,-510.27933919,0.00054698,45]
[314276625,1708139486152,-507.11234304,0.00054698,45]
[314276626,1708139486161,-305.84353736,0.00054698,45]
[314276627,1708139486170,-1000.0,0.00054698,45]
[314276628,1708139486180,-288.76714114,0.00054698,45]
[314276629,1708139486190,-2489.61140993,0.00054698,45]
[314276630,1708139486198,-1491.91856029,0.00054698,45]
[314276631,1708139486208,-274.12974443,0.00054698,45]
[314276632,1708139486217,-256.39219793,0.00054698,45]
[314276633,1708139486226,-1066.04246676,0.00054698,45]
[314276634,1708139486234,-1076.14920375,0.00054698,45]
[314276635,1708139486243,-1453.57212418,0.00054698,45]
[314276636,1708139486253,-13268.8038764,0.00054698,45]
[314276637,1708139486262,-269.68778899,0.00054698,45]
[314276638,1708139486272,-250.0,0.00054698,45]
[314276639,1708139486280,-412.92423095,0.00054698,45]
[314276640,1708139486290,-213.94146522,0.00054698,45]
[314276641,1708139486299,-278.52560878,0.00054698,45]
[314276642,1708139486308,-1388.6972,0.000547,30]
[314276643,1708139486317,-500.0,0.00054711,120]
[314276644,1708139486326,-800.0,0.0005479,30]
[314276645,1708139486335,-800.0,0.0005479,30]
[314276646,1708139486344,-739.89,0.00054794,120]
[314276647,1708139486353,-1000.0,0.00054794,20]
[314276648,1708139486362,-1000.0,0.00054794,20]
[314276649,1708139486370,-1000.0,0.00054794,20]
[314276650,1708139486379,-1000.0,0.00054794,20]
[314276651,1708139486388,-1000.0,0.00054794,20]
[314276652,1708139486397,-1000.0,0.00054794,20]
[314276653,1708139486406,-1000.0,0.00054794,20]
[314276654,1708139486414,-1000.0,0.00054794,20]
[314276655,1708139486423,-1000.0,0.00054794,20]
[314276656,1708139486432,-1000.0,0.00054794,20]
[314276657,1708139486441,-1000.0,0.00054794,20]
[314276658,1708139486450,-926.31480017,0.00054794,20]
[314276659,1708139486459,-500.0,0.00054794,120]
[314276660,1708139486467,-1000.0,0.00054794,120]
[314276661,1708139486476,-1000.0,0.00054794,120]
[314276662,1708139486486,-1000.0,0.00054794,120]
[314276663,1708139486494,-1000.0,0.00054794,120]
[314276664,1708139486504,-1000.0,0.00054794,120]
[314276665,1708139486513,-1000.0,0.00054794,120]
[314276666,1708139486522,-1000.0,0.00054794,120]
[314276667,1708139486531,-831.55658541,0.00054794,120]
[314276668,1708139486540,-615.82,0.00054794,120]
[314276669,1708139486549,-521.38,0.00054794,2]
[314276670,1708139486558,-526.92,0.00054794,120]
[314276671,1708139486567,-500.0,0.00054794,120]
[314276672,1708139486576,-500.0,0.00054794,120]
[314276673,1708139486585,-500.0,0.00054794,120]
[314276674,1708139486594,-500.0,0.00054794,120]
[314276675,1708139486603,-500.0,0.00054794,120]
[314276676,1708139486613,-500.0,0.00054794,120]
[314276677,1708139486622,-500.0,0.00054794,120]
[314276678,1708139486631,-500.0,0.00054794,120]
[314276679,1708139486640,-500.0,0.00054794,120]
[314276680,1708139486649,-500.0,0.00054794,120]
[314276681,1708139486658,-500.0,0.00054794,120]
[314276682,1708139486668,-500.0,0.00054794,120]
[314276683,1708139486677,-500.0,0.00054794,120]
[314276684,1708139486686,-500.0,0.00054794,120]
[314276685,1708139486794,-558.14460522,0.00054794,120]
[314276686,1708139486813,-500.0,0.00054794,120]
[314276687,1708139486822,-1162.21,0.00054794,120]
[314276688,1708139486831,-500.0,0.00054794,2]
[314276689,1708139486840,-1393.94,0.00054794,120]
[314276690,1708139486849,-1028.76,0.00054794,2]
[314276691,1708139486858,-657.81,0.00054794,120]
[314276692,1708139486868,-500.0,0.00054794,120]
[314276693,1708139486878,-523.96,0.00054794,120]
[314276694,1708139486887,-854.01,0.00054794,120]
[314276695,1708139486897,-1495.02,0.00054794,120]
[314276696,1708139486906,-1165.59,0.00054794,120]
[314276697,1708139486917,-636.17,0.00054794,120]
[314276698,1708139486927,-893.76,0.00054794,120]
[314276699,1708139486939,-622.67,0.00054794,120]
[314276700,1708139486949,-3136.01,0.00054794,120]
[314276701,1708139486958,-5024.34,0.00054794,120]
[314276702,1708139486968,-418.15108518,0.00054794,120]
[314276703,1708139486978,-502.24,0.00054794,120]
[314276704,1708139486987,-569.8,0.00054794,120]
[314276705,1708139486997,-2629.21,0.00054794,120]
[314276706,1708139487007,-2629.21,0.00054794,120]
[314276707,1708139487017,-2629.21,0.00054794,120]
[314276708,1708139487027,-2629.21,0.00054794,120]
[314276709,1708139487036,-2629.21,0.00054794,120]
[314276710,1708139487045,-2629.21,0.00054794,120]
[314276711,1708139487053,-2629.21,0.00054794,120]
[314276712,1708139487062,-2629.21,0.00054794,120]
[314276713,1708139487071,-2629.21,0.00054794,120]
[314276714,1708139487081,-2629.21,0.00054794,120]
[314276715,1708139487090,-2629.21,0.00054794,120]
[314276716,1708139487099,-2629.21,0.00054794,120]
[314276717,1708139487108,-2629.21,0.00054794,120]
[314276718,1708139487117,-2629.21,0.00054794,120]
[314276719,1708139487127,-2629.21,0.00054794,120]
[314276720,1708139487136,-2629.21,0.00054794,120]
[314276721,1708139487145,-500.0,0.00054794,120]
[314276722,1708139487154,-2629.21,0.00054794,120]
[314276723,1708139487164,-2629.21,0.00054794,120]
[314276724,1708139487174,-2629.21,0.00054794,120]
[314276725,1708139487183,-556.89,0.00054794,120]
[314276726,1708139487193,-2629.21,0.00054794,120]
[314276727,1708139487202,-2629.21,0.00054794,120]
[314276728,1708139487211,-2629.21,0.00054794,120]
[314276729,1708139487220,-873.0,0.00054794,120]
[314276730,1708139487230,-2629.21,0.00054794,120]
[314276731,1708139487240,-2629.21023267,0.00054794,120]
[314276732,1708139487249,-1593.36,0.00054794,120]
[314276733,1708139487259,-3220.88,0.00054794,120]
[314276734,1708139487267,-519.51,0.00054794,120]
[314276735,1708139487277,-500.0,0.00054794,120]
[314276736,1708139487286,-937.4,0.00054794,120]
[314276737,1708139487295,-577.85,0.00054794,120]
[314276738,1708139487305,-1846.34,0.00054794,120]
[314276739,1708139487314,-433.70221633,0.00054794,120]
[314276740,1708139487323,-1210.8,0.00054794,14]
[314276741,1708139487332,-1111.25,0.00054794,120]
[314276742,1708139487342,-783.66,0.00054794,120]
[314276743,1708139487350,-567.1,0.00054794,120]
[314276744,1708139487360,-523.09,0.00054794,120]
[314276745,1708139487369,-500.0,0.00054794,120]
[314276746,1708139487378,-637.01834569,0.00054794,120]
[314276747,1708139487387,-2129.66,0.00054794,120]